Workbook

Sheet Case 1
B1: 1 | C1: 2 | D1: 3 | E1: 4 | F1: 5
A2: 1 | B2: =$A2*B$1 -> 1 | C2: =$A2*C$1 -> 2 | D2: 3 | E2: 4 | F2: 5
A3: 2 | B3: =$A3*B$1 -> 2 | C3: 4 | D3: 6 | E3: 8 | F3: 10
A4: 3 | B4: 3 | C4: 6 | D4: 9 | E4: 12 | F4: 15
A5: 4 | B5: 4 | C5: 8 | D5: 12 | E5: 16 | F5: 20
A6: 5 | B6: 5 | C6: 10 | D6: 15 | E6: 20 | F6: 25

Sheet Case 2
B1: 56 | C1: 37 | D1: 54 | E1: 46 | F1: 29 | G1: 28 | H1: 78 | I1: 59 | J1: 73 | K1: 61
B2: 44 | C2: 80 | D2: 32 | E2: 47 | F2: 47 | G2: 26 | H2: 37 | I2: 67 | J2: 55 | K2: 84
B3: 58 | C3: 60 | D3: 54 | E3: 56 | F3: 38 | G3: 62 | H3: 84 | I3: 79 | J3: 19 | K3: 69
B4: 66 | C4: 39 | D4: 36 | E4: 74 | F4: 17 | G4: 30 | H4: 85 | I4: 27 | J4: 37 | K4: 37
B5: 80 | C5: 96 | D5: 54 | E5: 60 | F5: 75 | G5: 67 | H5: 83 | I5: 48 | J5: 55 | K5: 12
B6: 61 | C6: 56 | D6: 89 | E6: 58 | F6: 52 | G6: 72 | H6: 35 | I6: 45 | J6: 13 | K6: 64
B7: 34 | C7: 59 | D7: 27 | E7: 15 | F7: 79 | G7: 62 | H7: 81 | I7: 44 | J7: 78 | K7: 78
B8: 67 | C8: 46 | D8: 38 | E8: 76 | F8: 54 | G8: 31 | H8: 90 | I8: 35 | J8: 54 | K8: 38
B9: 65 | C9: 55 | D9: 45 | E9: 44 | F9: 63 | G9: 55 | H9: 52 | I9: 66 | J9: 41 | K9: 31
B10: 78 | C10: 20 | D10: 55 | E10: 6 | F10: 31 | G10: 27 | H10: 49 | I10: 29 | J10: 29 | K10: 79
B11: 24 | C11: 43 | D11: 29 | E11: 78 | F11: 61 | G11: 83 | H11: 81 | I11: 81 | J11: 40 | K11: 65
B12: 76 | C12: 58 | D12: 38 | E12: 91 | F12: 20 | G12: 39 | H12: 44 | I12: 43 | J12: 70 | K12: 88
B13: 30 | C13: 79 | D13: 71 | E13: 71 | F13: 23 | G13: 36 | H13: 79 | I13: 78 | J13: 51 | K13: 56
B14: 33 | C14: 19 | D14: 25 | E14: 60 | F14: 29 | G14: 55 | H14: 93 | I14: 65 | J14: 50 | K14: 41
B15: 90 | C15: 22 | D15: 40 | E15: 66 | F15: 51 | G15: 24 | H15: 49 | I15: 75 | J15: 52 | K15: 63
B16: 71 | C16: 61 | D16: 31 | E16: 62 | F16: 64 | G16: 18 | H16: 89 | I16: 35 | J16: 28 | K16: 25
B17: 43 | C17: 29 | D17: 70 | E17: 32 | F17: 35 | G17: 44 | H17: 17 | I17: 62 | J17: 47 | K17: 21
B18: 36 | C18: 55 | D18: 39 | E18: 50 | F18: 61 | G18: 51 | H18: 61 | I18: 87 | J18: 46 | K18: 81
B19: 48 | C19: 37 | D19: 51 | E19: 11 | F19: 50 | G19: 42 | H19: 78 | I19: 59 | J19: 50 | K19: 51
B20: 70 | C20: 49 | D20: 54 | E20: 48 | F20: 37 | G20: 3 | H20: 58 | I20: 80 | J20: 68 | K20: 66
A22: Percentile
A23: 0 | B23: =PERCENTILE(B$1:B$20,$A23/100) -> 24 | C23: =PERCENTILE(C$1:C$20,$A23/100) -> 19 | D23: 25 | E23: 6 | F23: 17 | G23: 3 | H23: 17 | I23: 27 | J23: 13 | K23: 12
A24: 20 | B24: =PERCENTILE(B$1:B$20,$A24/100) -> 35.6 | C24: 35.4 | D24: 31.8 | E24: 41.6 | F24: 29 | G24: 26.8 | H24: 48 | I24: 41.4 | J24: 35.4 | K24: 35.8
A25: 35 | B25: 46.6 | C25: 41.6 | D25: 38 | E25: 47.65 | F25: 36.3 | G25: 30.65 | H25: 55.9 | I25: 46.95 | J25: 44.25 | K25: 47.5
A26: 40 | B26: 52.8 | C26: 44.8 | D26: 38.6 | E26: 49.2 | F26: 37.6 | G26: 34 | H26: 59.8 | I26: 54.6 | J26: 46.6 | K26: 54
A27: 45 | B27: 57.1 | C27: 47.65 | D27: 39.55 | E27: 53.3 | F27: 42.95 | G27: 37.65 | H27: 70.35 | I27: 59 | J27: 48.65 | K27: 58.75
A28: 50 | B28: 59.5 | C28: 52 | D28: 42.5 | E28: 57 | F28: 48.5 | G28: 40.5 | H28: 78 | I28: 60.5 | J28: 50 | K28: 62
A29: 95 | B29: 80.5 | C29: 80.8 | D29: 71.9 | E29: 78.65 | F29: 75.2 | G29: 72.55 | H29: 90.15 | I29: 81.3 | J29: 73.25 | K29: 84.2
A31: Percentile Rank
A32: 0 | B32: =IFERROR(PERCENTRANK(B$1:B$20,$A32),"Out of Range") -> Out of Range | C32: =IFERROR(PERCENTRANK(C$1:C$20,$A32),"Out of Range") -> Out of Range | D32: Out of Range | E32: Out of Range | F32: Out of Range | G32: Out of Range | H32: Out of Range | I32: Out of Range | J32: Out of Range | K32: Out of Range
A33: 8 | B33: =IFERROR(PERCENTRANK(B$1:B$20,$A33),"Out of Range") -> Out of Range | C33: Out of Range | D33: Out of Range | E33: 0.021 | F33: Out of Range | G33: 0.017 | H33: Out of Range | I33: Out of Range | J33: Out of Range | K33: Out of Range
A34: 12 | B34: Out of Range | C34: Out of Range | D34: Out of Range | E34: 0.065 | F34: Out of Range | G34: 0.031 | H34: Out of Range | I34: Out of Range | J34: Out of Range | K34: 0
A35: 67 | B35: 0.684 | C35: 0.859 | D35: 0.884 | E35: 0.747 | F35: 0.909 | G35: 0.894 | H35: 0.439 | I35: 0.684 | J35: 0.838 | K35: 0.701
A36: 90 | B36: 1 | C36: 0.98 | D36: Out of Range | E36: 0.995 | F36: Out of Range | G36: Out of Range | H36: 0.947 | I36: Out of Range | J36: Out of Range | K36: Out of Range
A37: 104 | B37: Out of Range | C37: Out of Range | D37: Out of Range | E37: Out of Range | F37: Out of Range | G37: Out of Range | H37: Out of Range | I37: Out of Range | J37: Out of Range | K37: Out of Range
B39: =IF(SUM(B1:B20)<1000,"< 1000",SUM(B1:B20)) -> 1130 | C39: =IF(SUM(C1:C20)<1000,"< 1000",SUM(C1:C20)) -> 1000 | D39: < 1000 | E39: =IF(SUM(E1:E20)<1000,"< 1000",SUM(E1:E20)) -> 1051 | F39: < 1000 | G39: < 1000 | H39: 1323 | I39: 1164 | J39: < 1000 | K39: 1110
B40: =SUMIF(B1:B20, ">70") -> 395 | C40: =SUMIF(C1:C20, ">70") -> 255 | D40: 160 | E40: 390 | F40: 154 | G40: 155 | H40: 921 | I40: 480 | J40: 151 | K40: 410

Sheet Case 4
A1: Assignment | B1: Weight | C1: Points | D1: Total | E1: Grade % | H1: Sum: | I1: =SUMPRODUCT(B2:B8,E2:E8) -> 0.56075
A2: HW 1 | B2: 0.1 | C2: 18 | D2: 20 | E2: =IF(ISBLANK(C2),"",C2/D2) -> 0.9 | H2: Normalized Sum: | I2: 0.8626923077
A3: Quiz 1 | B3: 0.15 | D3: 10 | E3: =IF(ISBLANK(C3),"",C3/D3) -> 
A4: HW 2 | B4: 0.1 | C4: 43 | D4: 50 | E4: 0.86
A5: Quiz 2 | B5: 0.15 | C5: 23 | D5: 24 | E5: 0.9583333333
A6: Test 1 | B6: 0.2 | D6: 50
A7: HW 3 | B7: 0.1 | C7: 9 | D7: 20 | E7: 0.45
A8: Test 2 | B8: 0.2 | C8: 49 | D8: 50 | E8: 0.98

Sheet Case 5
A1: Date | B1: Close
A2: 2012-07-13 | B2: 1356.78 | C2: =IF(B2>B3,1,0) -> 1 | E2: =SUM(C2:C30)/COUNT(C2:C30) -> 0.5517241379
A3: 2012-07-12 | B3: 1334.76 | C3: =IF(B3>B4,1,0) -> 0
A4: 2012-07-11 | B4: 1341.45 | C4: 0
A5: 2012-07-10 | B5: 1341.47 | C5: 0
A6: 2012-07-09 | B6: 1352.46 | C6: 0
A7: 2012-07-06 | B7: 1354.68 | C7: 0
A8: 2012-07-05 | B8: 1367.58 | C8: 0
A9: 2012-07-03 | B9: 1374.02 | C9: 1
A10: 2012-07-02 | B10: 1365.51 | C10: 1
A11: 2012-06-29 | B11: 1362.16 | C11: 1
A12: 2012-06-28 | B12: 1329.04 | C12: 0
A13: 2012-06-27 | B13: 1331.85 | C13: 1
A14: 2012-06-26 | B14: 1319.99 | C14: 1
A15: 2012-06-25 | B15: 1313.72 | C15: 0
A16: 2012-06-22 | B16: 1335.02 | C16: 1
A17: 2012-06-21 | B17: 1325.51 | C17: 0
A18: 2012-06-20 | B18: 1355.69 | C18: 0
A19: 2012-06-19 | B19: 1357.98 | C19: 1
A20: 2012-06-18 | B20: 1344.78 | C20: 1
A21: 2012-06-15 | B21: 1342.84 | C21: 1
A22: 2012-06-14 | B22: 1329.1 | C22: 1
A23: 2012-06-13 | B23: 1314.88 | C23: 0
A24: 2012-06-12 | B24: 1324.18 | C24: 1
A25: 2012-06-11 | B25: 1308.93 | C25: 0
A26: 2012-06-08 | B26: 1325.66 | C26: 1
A27: 2012-06-07 | B27: 1314.99 | C27: 0
A28: 2012-06-06 | B28: 1315.13 | C28: 1
A29: 2012-06-05 | B29: 1285.5 | C29: 1
A30: 2012-06-04 | B30: 1278.18 | C30: 1
A31: 2012-06-01 | B31: 1278.04

Sheet Tutorial 4
A1: 13 | B1: 0.09021012195
A2: 8 | B2: 0.2056108974
A3: 17 | B3: 0.2667312726
A4: 7 | B4: 0.2791177169
A5: 15 | B5: 0.2841767211
A6: 20 | B6: 0.3596722287
A7: 1 | B7: 0.4921343168
A8: 9 | B8: 0.5007773506
A9: 3 | B9: 0.5086954254
A10: 18 | B10: 0.5549442212
A11: 14 | B11: 0.6385269809
A12: 4 | B12: 0.7946933937
A13: 2 | B13: 0.8042591501
A14: 10 | B14: 0.8395906554
A15: 5 | B15: 0.8667428087
A16: 16 | B16: 0.8828500201
A17: 19 | B17: 0.8877648994
A18: 6 | B18: 0.9274558859
A19: 12 | B19: 0.9295406389
A20: 11 | B20: 0.9483434378

Sheet Case 6
A1: Date | B1: Open | C1: High | D1: Low | E1: Close | F1: Volume | I1: Date | J1: Open | K1: High | L1: Low | M1: Close | N1: Volume
A2: 2012-07-27 | B2: 1360.05 | C2: 1389.19 | D2: 1360.05 | E2: 1385.97 | F2: 740576248 | I2: 2012-07-20 | J2: =IFERROR(VLOOKUP($I2,$A$1:$F$31,COLUMN()-8,FALSE),"***NO DATA***") -> 1376.51 | K2: =IFERROR(VLOOKUP($I2,$A$1:$F$31,COLUMN()-8,FALSE),"***NO DATA***") -> 1376.51 | L2: 1362.19 | M2: 1362.66 | N2: 851766884
A3: 2012-07-26 | B3: 1338.17 | C3: 1363.13 | D3: 1338.17 | E3: 1360.02 | F3: 705312389 | I3: 2012-07-18 | J3: =IFERROR(VLOOKUP($I3,$A$1:$F$31,COLUMN()-8,FALSE),"***NO DATA***") -> 1363.58 | K3: 1375.26 | L3: 1358.96 | M3: 1372.78 | N3: 573272738
A4: 2012-07-25 | B4: 1338.35 | C4: 1343.98 | D4: 1331.5 | E4: 1337.89 | F4: 643149202 | I4: 2012-06-25 | J4: 1334.9 | K4: 1334.9 | L4: 1309.27 | M4: 1313.72 | N4: 596638856
A5: 2012-07-24 | B5: 1350.52 | C5: 1351.53 | D5: 1329.24 | E5: 1338.31 | F5: 616405681 | I5: 2012-06-24 | J5: ***NO DATA*** | K5: ***NO DATA*** | L5: ***NO DATA*** | M5: ***NO DATA*** | N5: ***NO DATA***
A6: 2012-07-23 | B6: 1362.34 | C6: 1362.34 | D6: 1337.56 | E6: 1350.52 | F6: 591487647 | I6: 2012-06-18 | J6: 1342.42 | K6: 1348.22 | L6: 1334.46 | M6: 1344.78 | N6: 540693645
A7: 2012-07-20 | B7: 1376.51 | C7: 1376.51 | D7: 1362.19 | E7: 1362.66 | F7: 851766884
A8: 2012-07-19 | B8: 1373.01 | C8: 1380.39 | D8: 1371.21 | E8: 1376.51 | F8: 631244869
A9: 2012-07-18 | B9: 1363.58 | C9: 1375.26 | D9: 1358.96 | E9: 1372.78 | F9: 573272738
A10: 2012-07-17 | B10: 1353.68 | C10: 1365.36 | D10: 1345.07 | E10: 1363.67 | F10: 554028066
A11: 2012-07-16 | B11: 1356.5 | C11: 1357.26 | D11: 1348.51 | E11: 1353.64 | F11: 460442491
A12: 2012-07-13 | B12: 1334.81 | C12: 1357.7 | D12: 1334.81 | E12: 1356.78 | F12: 522326756
A13: 2012-07-12 | B13: 1341.29 | C13: 1341.29 | D13: 1325.41 | E13: 1334.76 | F13: 597864299
A14: 2012-07-11 | B14: 1341.4 | C14: 1345 | D14: 1333.25 | E14: 1341.45 | F14: 593546769
A15: 2012-07-10 | B15: 1352.96 | C15: 1361.54 | D15: 1336.27 | E15: 1341.47 | F15: 557227621
A16: 2012-07-09 | B16: 1354.66 | C16: 1354.87 | D16: 1346.65 | E16: 1352.46 | F16: 488550379
A17: 2012-07-06 | B17: 1367.09 | C17: 1367.09 | D17: 1348.03 | E17: 1354.68 | F17: 473892776
A18: 2012-07-05 | B18: 1373.72 | C18: 1373.85 | D18: 1363.02 | E18: 1367.58 | F18: 491316624
A19: 2012-07-03 | B19: 1365.75 | C19: 1374.81 | D19: 1363.53 | E19: 1374.02 | F19: 333805962
A20: 2012-07-02 | B20: 1362.33 | C20: 1366.35 | D20: 1355.7 | E20: 1365.51 | F20: 544915121
A21: 2012-06-29 | B21: 1330.12 | C21: 1362.17 | D21: 1330.12 | E21: 1362.16 | F21: 852335491
A22: 2012-06-28 | B22: 1331.52 | C22: 1331.52 | D22: 1313.29 | E22: 1329.04 | F22: 692430228
A23: 2012-06-27 | B23: 1320.71 | C23: 1334.4 | D23: 1320.71 | E23: 1331.85 | F23: 499592326
A24: 2012-06-26 | B24: 1314.09 | C24: 1324.24 | D24: 1310.3 | E24: 1319.99 | F24: 550335831
A25: 2012-06-25 | B25: 1334.9 | C25: 1334.9 | D25: 1309.27 | E25: 1313.72 | F25: 596638856
A26: 2012-06-22 | B26: 1325.92 | C26: 1337.82 | D26: 1325.92 | E26: 1335.02 | F26: 929041316
A27: 2012-06-21 | B27: 1355.43 | C27: 1358.27 | D27: 1324.41 | E27: 1325.51 | F27: 677891678
A28: 2012-06-20 | B28: 1358.04 | C28: 1361.57 | D28: 1346.45 | E28: 1355.69 | F28: 573023007
A29: 2012-06-19 | B29: 1344.83 | C29: 1363.46 | D29: 1344.83 | E29: 1357.98 | F29: 586629773
A30: 2012-06-18 | B30: 1342.42 | C30: 1348.22 | D30: 1334.46 | E30: 1344.78 | F30: 540693645
A31: 2012-06-15 | B31: 1329.19 | C31: 1343.32 | D31: 1329.19 | E31: 1342.84 | F31: 1141818297

Sheet Case 7
B1: Station (alphabetical by borough) | U1: Value | V1: Station | X1: The Bronx | Y1: 161 St-Yankee Stadium [B, D, 4] | AA1: The Bronx | AB1: =COUNTIF(X:X,AA1) -> 2
C2: 2007 | D2: 2008 | E2: 2009 | F2: 2010 | G2: 2011 | H2: 2010-11 Change | J2: 2011 Rank | L2: Decreasing | M2: Increasing | P2: % Increasing | R2: % Change | T2: Max | U2: =MAX(R3:R423) -> 1.034941689 | V2: =OFFSET($R$2,MATCH(U2,$R$3:$R$423,0),-16) -> Kingsbridge Rd [4] | X2: The Bronx | Y2: 3 Av-149 St [2, 5] | AA2: Brooklyn | AB2: =COUNTIF(X:X,AA2) -> 10
A3: The Bronx | B3: 138 St-Grand Concourse [4, 5] | C3: 800595 | D3: 864369 | E3: 887662 | F3: 898509 | G3: 917911 | H3: 19402 | I3: 0.022 | J3: 361 | L3: =IF(AND(G3<F3,F3<E3,E3<D3,D3<C3),"YES","NO") -> NO | M3: =IF(AND(G3>F3,F3>E3,E3>D3,D3>C3),"YES","NO") -> YES | O3: =A3 -> The Bronx | P3: =COUNTIF(M3:M70,"=YES")/COUNTA(M3:M70) -> 0.2205882353 | R3: =IFERROR((G3-C3)/C3,"") -> 0.1465360138 | T3: Min | U3: =MIN(R3:R423) -> -0.6392461277 | V3: =OFFSET($R$2,MATCH(U3,$R$3:$R$423,0),-16) -> Elder Av [6] | X3: Brooklyn | Y3: Atlantic Av [B, Q, 2, 3, 4, 5, D, N, R] | AA3: Manhattan | AB3: =COUNTIF(X:X,AA3) -> 50
A4: The Bronx | B4: 149 St-Grand Concourse [2, 4, 5] | C4: 3112547 | D4: 3454530 | E4: 3660150 | F4: 3979328 | G4: 4169699 | H4: 190371 | I4: 0.048 | J4: 110 | L4: =IF(AND(G4<F4,F4<E4,E4<D4,D4<C4),"YES","NO") -> NO | M4: =IF(AND(G4>F4,F4>E4,E4>D4,D4>C4),"YES","NO") -> YES | O4: =A71 -> Brooklyn | P4: =COUNTIF(M71:M227,"=YES")/COUNTA(M71:M227) -> 0.2229299363 | R4: =IFERROR((G4-C4)/C4,"") -> 0.3396421002 | X4: Brooklyn | Y4: Bedford Av [L] | AA4: Queens | AB4: =COUNTIF(X:X,AA4) -> 16
A5: The Bronx | B5: 161 St-Yankee Stadium [B, D, 4] | C5: 7836990 | D5: 8576546 | E5: 8410256 | F5: 8434247 | G5: 8605893 | H5: 171646 | I5: 0.02 | J5: 36 | L5: NO | M5: NO | O5: =A228 -> Manhattan | P5: =COUNTIF(M228:M345,"=YES")/COUNTA(M228:M345) -> 0.1101694915 | R5: 0.09811203026 | X5: Brooklyn | Y5: Court St [R, 2, 3, 4, 5]
A6: The Bronx | B6: 167 St [4] | C6: 2715327 | D6: 2876058 | E6: 2892398 | F6: 2931947 | G6: 2978748 | H6: 46801 | I6: 0.016 | J6: 160 | L6: NO | M6: YES | O6: =A346 -> Queens | P6: =COUNTIF(M346:M423,"=YES")/COUNTA(M346:M423) -> 0.07692307692 | R6: 0.097012625 | X6: Brooklyn | Y6: Crown Heights-Utica Av [3, 4]
A7: The Bronx | B7: 167 St [B, D] | C7: 2834640 | D7: 2920517 | E7: 2874428 | F7: 2907900 | G7: 2952368 | H7: 44468 | I7: 0.015 | J7: 166 | L7: NO | M7: NO | R7: 0.04153190529 | X7: Brooklyn | Y7: DeKalb Av [B, Q, R]
A8: The Bronx | B8: 170 St [4] | C8: 2523549 | D8: 2735272 | E8: 2831174 | F8: 2950997 | G8: 2954573 | H8: 3576 | I8: 0.001 | J8: 164 | L8: NO | M8: YES | R8: 0.1708007255 | X8: Brooklyn | Y8: Flatbush Av-Brooklyn College [2, 5]
A9: The Bronx | B9: 170 St [B, D] | C9: 2019834 | D9: 2092449 | E9: 2014364 | F9: 1940700 | G9: 1988409 | H9: 47709 | I9: 0.025 | J9: 232 | L9: NO | M9: NO | R9: -0.01555820924 | X9: Brooklyn | Y9: Jay St-MetroTech [A, C, F, R]
A10: The Bronx | B10: 174 St [2, 5] | C10: 2047981 | D10: 2159617 | E10: 2127174 | F10: 2239254 | G10: 2161875 | H10: -77379 | I10: -0.035 | J10: 213 | L10: NO | M10: NO | R10: 0.05561282063 | X10: Brooklyn | Y10: Kings Hwy [B, Q]
A11: The Bronx | B11: 174-175 Sts [B, D] | C11: 1490168 | D11: 1557954 | E11: 1475159 | F11: 1451367 | G11: 1492092 | H11: 40725 | I11: 0.028 | J11: 288 | L11: NO | M11: NO | R11: 0.001291129591 | X11: Brooklyn | Y11: Myrtle-Wyckoff Avs [L, M]
A12: The Bronx | B12: 176 St [4] | C12: 1454231 | D12: 1604117 | E12: 1378480 | F12: 1445219 | G12: 1720629 | H12: 275410 | I12: 0.191 | J12: 263 | L12: NO | M12: NO | R12: 0.183188228 | X12: Brooklyn | Y12: Nostrand Av [A, C]
A13: The Bronx | B13: 182-183 Sts [B, D] | C13: 1592710 | D13: 1561529 | E13: 1506398 | F13: 1495831 | G13: 1489026 | H13: -6805 | I13: -0.005 | J13: 289 | L13: YES | M13: NO | R13: -0.06509910781 | X13: Manhattan | Y13: 1 Av [L]
A14: The Bronx | B14: 183 St [4] | C14: 1073820 | D14: 1864350 | E14: 1913656 | F14: 1945021 | G14: 1978737 | H14: 33716 | I14: 0.017 | J14: 234 | L14: NO | M14: YES | R14: 0.8427082751 | X14: Manhattan | Y14: 116 St [6]
A15: The Bronx | B15: 219 St [2, 5] | C15: 854553 | D15: 926893 | E15: 957529 | F15: 1024424 | G15: 1032343 | H15: 7919 | I15: 0.008 | J15: 350 | L15: NO | M15: YES | R15: 0.2080502906 | X15: Manhattan | Y15: 125 St [4, 5, 6]
A16: The Bronx | B16: 225 St [2, 5] | C16: 1095409 | D16: 1173697 | E16: 1191808 | F16: 1283398 | G16: 1336790 | H16: 53392 | I16: 0.042 | J16: 306 | L16: NO | M16: YES | R16: 0.2203569626 | X16: Manhattan | Y16: 125 St [A, B, C, D]
A17: The Bronx | B17: 231 St [1] | C17: 2531151 | D17: 2752351 | E17: 2669185 | F17: 2660882 | G17: 2731068 | H17: 70186 | I17: 0.026 | J17: 175 | L17: NO | M17: NO | R17: 0.07898264465 | X17: Manhattan | Y17: 14 St [A, C, E, L]
A18: The Bronx | B18: 233 St [2, 5] | C18: 1375404 | D18: 1485276 | E18: 1508683 | F18: 1614436 | G18: 1655372 | H18: 40936 | I18: 0.025 | J18: 267 | L18: NO | M18: YES | R18: 0.2035532833 | X18: Manhattan | Y18: 14 St [F, M, 1, 2, 3, L]
A19: The Bronx | B19: 238 St [1] | C19: 1097387 | D19: 1164038 | E19: 1094292 | F19: 1067352 | G19: 902601 | H19: -164751 | I19: -0.154 | J19: 362 | L19: NO | M19: NO | R19: -0.1774998246 | X19: Manhattan | Y19: 145 St [A, B, C, D]
A20: The Bronx | B20: 3 Av-138 St [6] | C20: 2023274 | D20: 2159647 | E20: 2222695 | F20: 2190627 | G20: 2280268 | H20: 89641 | I20: 0.041 | J20: 202 | L20: NO | M20: NO | R20: 0.1270188813 | X20: Manhattan | Y20: 168 St [A, C, 1]
A21: The Bronx | B21: 3 Av-149 St [2, 5] | C21: 7095262 | D21: 7393330 | E21: 7411343 | F21: 7239167 | G21: 7232070 | H21: -7097 | I21: -0.001 | J21: 50 | L21: NO | M21: NO | R21: 0.01928159947 | X21: Manhattan | Y21: 2 Av [F]
A22: The Bronx | B22: Allerton Av [2, 5] | C22: 1574252 | D22: 1625023 | E22: 1661132 | F22: 1668896 | G22: 1602390 | H22: -66506 | I22: -0.04 | J22: 275 | L22: NO | M22: NO | R22: 0.0178738855 | X22: Manhattan | Y22: 23 St [6]
A23: The Bronx | B23: Baychester Av [5] | C23: 1112821 | D23: 1168224 | E23: 1045547 | F23: 1087618 | G23: 1106959 | H23: 19341 | I23: 0.018 | J23: 337 | L23: NO | M23: NO | R23: -0.005267693546 | X23: Manhattan | Y23: 23 St [C, E]
A24: The Bronx | B24: Bedford Park Blvd [B, D] | C24: 1928566 | D24: 1989894 | E24: 1932709 | F24: 1885231 | G24: 1914096 | H24: 28865 | I24: 0.015 | J24: 243 | L24: NO | M24: NO | R24: -0.007502984082 | X24: Manhattan | Y24: 23 St [F, M]
A25: The Bronx | B25: Bedford Park Blvd-Lehman College [4] | C25: 1614531 | D25: 1719816 | E25: 1735029 | F25: 1786305 | G25: 1835965 | H25: 49660 | I25: 0.028 | J25: 246 | L25: NO | M25: YES | R25: 0.1371506648 | X25: Manhattan | Y25: 23 St [N, R]
A26: The Bronx | B26: Bronx Park East [2, 5] | C26: 856682 | D26: 880102 | E26: 865492 | F26: 888162 | G26: 826356 | H26: -61806 | I26: -0.07 | J26: 373 | L26: NO | M26: NO | R26: -0.03539936639 | X26: Manhattan | Y26: 28 St [6]
A27: The Bronx | B27: Brook Av [6] | C27: 1825026 | D27: 1915123 | E27: 1800008 | F27: 1902909 | G27: 1950893 | H27: 47984 | I27: 0.025 | J27: 237 | L27: NO | M27: NO | R27: 0.06896723663 | X27: Manhattan | Y27: 33 St [6]
A28: The Bronx | B28: Buhre Av [6] | C28: 824727 | D28: 888854 | E28: 883232 | F28: 895193 | G28: 991171 | H28: 95978 | I28: 0.107 | J28: 355 | L28: NO | M28: NO | R28: 0.2018170861 | X28: Manhattan | Y28: 42 St-Bryant Pk [B, D, F, M, 7]
A29: The Bronx | B29: Burke Av [2, 5] | C29: 1019924 | D29: 1047965 | E29: 1047238 | F29: 1060008 | G29: 1036169 | H29: -23839 | I29: -0.022 | J29: 348 | L29: NO | M29: NO | R29: 0.01592765735 | X29: Manhattan | Y29: 47-50 Sts-Rockefeller Center [B, D, F, M]
A30: The Bronx | B30: Burnside Av [4] | C30: 3182286 | D30: 3241959 | E30: 3408080 | F30: 3533604 | G30: 3528312 | H30: -5292 | I30: -0.001 | J30: 132 | L30: NO | M30: NO | R30: 0.1087350414 | X30: Manhattan | Y30: 49 St [N, Q, R]
A31: The Bronx | B31: Castle Hill Av [6] | C31: 2021224 | D31: 2155897 | E31: 2036025 | F31: 2345255 | G31: 2341370 | H31: -3885 | I31: -0.002 | J31: 197 | L31: NO | M31: NO | R31: 0.1583921426 | X31: Manhattan | Y31: 5 Av-53 St [E, M]
A32: The Bronx | B32: Cypress Av [6] | C32: 1037151 | D32: 1136278 | E32: 1082788 | F32: 1158742 | G32: 1142381 | H32: -16361 | I32: -0.014 | J32: 330 | L32: NO | M32: NO | R32: 0.1014606359 | X32: Manhattan | Y32: 5 Av-59 St [N, Q, R]
A33: The Bronx | B33: East 143 St-St Mary's St [6] | C33: 271886 | D33: 264788 | E33: 239458 | F33: 256277 | G33: 280840 | H33: 24563 | I33: 0.096 | J33: 414 | L33: NO | M33: NO | R33: 0.03293292042 | X33: Manhattan | Y33: 50 St [1]
A34: The Bronx | B34: East 149 St [6] | C34: 1337401 | D34: 1393227 | E34: 1335234 | F34: 1351873 | G34: 1383455 | H34: 31582 | I34: 0.023 | J34: 300 | L34: NO | M34: NO | R34: 0.03443544606 | X34: Manhattan | Y34: 50 St [C, E]
A35: The Bronx | B35: East 180 St [2, 5] | C35: 1824605 | D35: 2041507 | E35: 2049824 | F35: 1852836 | G35: 2164608 | H35: 311772 | I35: 0.168 | J35: 212 | L35: NO | M35: NO | R35: 0.1863433455 | X35: Manhattan | Y35: 57 St-7 Av [N, Q, R]
A36: The Bronx | B36: Eastchester-Dyre Av [5] | C36: 1146326 | D36: 1251842 | E36: 1186603 | F36: 1258858 | G36: 1309695 | H36: 50837 | I36: 0.04 | J36: 309 | L36: NO | M36: NO | R36: 0.1425153054 | X36: Manhattan | Y36: 66 St-Lincoln Center [1]
A37: The Bronx | B37: Elder Av [6] | C37: 1999596 | D37: 2077064 | E37: 2050983 | F37: 2864031 | G37: 721362 | H37: -2142669 | I37: -0.748 | J37: 387 | L37: NO | M37: NO | R37: -0.6392461277 | X37: Manhattan | Y37: 68 St-Hunter College [6]
A38: The Bronx | B38: Fordham Rd [4] | C38: 3954572 | D38: 3643168 | E38: 3760364 | F38: 3866249 | G38: 3966339 | H38: 100090 | I38: 0.026 | J38: 118 | L38: NO | M38: NO | R38: 0.002975543245 | X38: Manhattan | Y38: 72 St [1, 2, 3]
A39: The Bronx | B39: Fordham Rd [B, D] | C39: 3711150 | D39: 3753128 | E39: 3656618 | F39: 3681362 | G39: 3680312 | H39: -1050 | I39: 0 | J39: 127 | L39: NO | M39: NO | R39: -0.008309553642 | X39: Manhattan | Y39: 77 St [6]
A40: The Bronx | B40: Freeman St [2, 5] | C40: 1043539 | D40: 1150491 | E40: 1204838 | F40: 1332285 | G40: 1348014 | H40: 15729 | I40: 0.012 | J40: 304 | L40: NO | M40: YES | R40: 0.2917715581 | X40: Manhattan | Y40: 79 St [1]
A41: The Bronx | B41: Gun Hill Rd [2, 5] | C41: 1739590 | D41: 1864323 | E41: 1928697 | F41: 2101823 | G41: 2176939 | H41: 75116 | I41: 0.036 | J41: 209 | L41: NO | M41: YES | R41: 0.2514092401 | X41: Manhattan | Y41: 8 St-New York University [N, R]
A42: The Bronx | B42: Gun Hill Rd [5] | C42: 1753569 | D42: 1817798 | E42: 1675952 | F42: 1713288 | G42: 1683011 | H42: -30277 | I42: -0.018 | J42: 264 | L42: NO | M42: NO | R42: -0.04023679707 | X42: Manhattan | Y42: 86 St [1]
A43: The Bronx | B43: Hunts Point Av [6] | C43: 3132363 | D43: 3255048 | E43: 3244240 | F43: 3248970 | G43: 3191706 | H43: -57264 | I43: -0.018 | J43: 147 | L43: NO | M43: NO | R43: 0.01894512226 | X43: Manhattan | Y43: 86 St [4, 5, 6]
A44: The Bronx | B44: Intervale Av [2, 5] | C44: 826760 | D44: 870362 | E44: 870466 | F44: 908596 | G44: 902216 | H44: -6380 | I44: -0.007 | J44: 363 | L44: NO | M44: NO | R44: 0.091267115 | X44: Manhattan | Y44: 96 St [1, 2, 3]
A45: The Bronx | B45: Jackson Av [2, 5] | C45: 1527291 | D45: 1600588 | E45: 1558808 | F45: 1624212 | G45: 1573302 | H45: -50910 | I45: -0.031 | J45: 280 | L45: NO | M45: NO | R45: 0.03012588957 | X45: Manhattan | Y45: 96 St [6]
A46: The Bronx | B46: Kingsbridge Rd [4] | C46: 1557595 | D46: 2754063 | E46: 2892922 | F46: 3037572 | G46: 3169615 | H46: 132043 | I46: 0.043 | J46: 150 | L46: NO | M46: YES | R46: 1.034941689 | X46: Manhattan | Y46: Astor Place [6]
A47: The Bronx | B47: Kingsbridge Rd [B, D] | C47: 2677855 | D47: 2475092 | E47: 2337672 | F47: 2285401 | G47: 2275576 | H47: -9825 | I47: -0.004 | J47: 203 | L47: YES | M47: NO | R47: -0.15022434 | X47: Manhattan | Y47: Bowling Green [4, 5]
A48: The Bronx | B48: Longwood Av [6] | C48: 1031697 | D48: 1042782 | E48: 982290 | F48: 1026772 | G48: 1067960 | H48: 41188 | I48: 0.04 | J48: 344 | L48: NO | M48: NO | R48: 0.03514888577 | X48: Manhattan | Y48: Broadway-Lafayette St [B, D, F, M, 6]
A49: The Bronx | B49: Middletown Rd [6] | C49: 487759 | D49: 526567 | E49: 523950 | F49: 546692 | G49: 559746 | H49: 13054 | I49: 0.024 | J49: 398 | L49: NO | M49: NO | R49: 0.1475872306 | X49: Manhattan | Y49: Brooklyn Bridge-City Hall [4, 5, 6, J, Z]
A50: The Bronx | B50: Morris Park [5] | C50: 550547 | D50: 570262 | E50: 524382 | F50: 535823 | G50: 554320 | H50: 18497 | I50: 0.035 | J50: 400 | L50: NO | M50: NO | R50: 0.006853184197 | X50: Manhattan | Y50: Canal St [A, C, E]
A51: The Bronx | B51: Morrison Av-Soundview [6] | C51: 1879569 | D51: 2025425 | E51: 1982168 | F51: 730517 | G51: 3028145 | H51: 2297628 | I51: 3.145 | J51: 158 | L51: NO | M51: NO | R51: 0.6110847753 | X51: Manhattan | Y51: Canal St [J, N, Q, R, Z, 6]
A52: The Bronx | B52: Mosholu Pkwy [4] | C52: 2155241 | D52: 2539286 | E52: 2794992 | F52: 2913786 | G52: 2961522 | H52: 47736 | I52: 0.016 | J52: 163 | L52: NO | M52: YES | R52: 0.3741024786 | X52: Manhattan | Y52: Chambers St [1, 2, 3]
A53: The Bronx | B53: Mt Eden Av [4] | C53: 1538588 | D53: 1607256 | E53: 1766092 | F53: 1843698 | G53: 1814951 | H53: -28747 | I53: -0.016 | J53: 250 | L53: NO | M53: NO | R53: 0.1796211851 | X53: Manhattan | Y53: Chambers St [A, C, E, 2, 3]
A54: The Bronx | B54: Nereid Av [2, 5] | C54: 857763 | D54: 929559 | E54: 924584 | F54: 1001851 | G54: 1025004 | H54: 23153 | I54: 0.023 | J54: 351 | L54: NO | M54: NO | R54: 0.1949734367 | X54: Manhattan | Y54: Delancey St [F, J, M, Z]
A55: The Bronx | B55: Norwood-205 St [D] | C55: 2382795 | D55: 2493009 | E55: 2308963 | F55: 2410949 | G55: 2472094 | H55: 61145 | I55: 0.025 | J55: 187 | L55: NO | M55: NO | R55: 0.03747657688 | X55: Manhattan | Y55: Fulton St [A, C, J, Z, 2, 3, 4, 5]
A56: The Bronx | B56: Parkchester [6] | C56: 4605514 | D56: 4720570 | E56: 4691478 | F56: 3944729 | G56: 4851182 | H56: 906453 | I56: 0.23 | J56: 91 | L56: NO | M56: NO | R56: 0.05334214596 | X56: Manhattan | Y56: Grand St [B, D]
A57: The Bronx | B57: Pelham Bay Park [6] | C57: 1836334 | D57: 1931973 | E57: 1946139 | F57: 1997392 | G57: 2062525 | H57: 65133 | I57: 0.033 | J57: 225 | L57: NO | M57: YES | R57: 0.1231753047 | X57: Manhattan | Y57: Lexington Av-53 St [E, M, 6]
A58: The Bronx | B58: Pelham Pkwy [2, 5] | C58: 2313926 | D58: 2514944 | E58: 2585393 | F58: 2703568 | G58: 2701431 | H58: -2137 | I58: -0.001 | J58: 178 | L58: NO | M58: NO | R58: 0.1674664618 | X58: Manhattan | Y58: Prince St [N, R]
A59: The Bronx | B59: Pelham Pkwy [5] | C59: 840151 | D59: 870544 | E59: 832968 | F59: 883490 | G59: 897433 | H59: 13943 | I59: 0.016 | J59: 366 | L59: NO | M59: NO | R59: 0.06818060087 | X59: Manhattan | Y59: South Ferry[1, R]
A60: The Bronx | B60: Prospect Av [2, 5] | C60: 2208977 | D60: 2335593 | E60: 2282752 | F60: 2326054 | G60: 2209945 | H60: -116109 | I60: -0.05 | J60: 207 | L60: NO | M60: NO | R60: 0.0004382118963 | X60: Manhattan | Y60: Wall St [2, 3]
A61: The Bronx | B61: Simpson St [2, 5] | C61: 2816132 | D61: 2974529 | E61: 2874093 | F61: 3057192 | G61: 2901513 | H61: -155679 | I61: -0.051 | J61: 167 | L61: NO | M61: NO | R61: 0.0303185362 | X61: Manhattan | Y61: Wall St [4, 5]
A62: The Bronx | B62: St Lawrence Av [6] | C62: 1212190 | D62: 1297041 | E62: 1284770 | F62: 1655340 | G62: 463809 | H62: -1191531 | I62: -0.72 | J62: 406 | L62: NO | M62: NO | R62: -0.6173792887 | X62: Manhattan | Y62: West 4 St-Washington Sq [A, B, C, D, E, F, M]
A63: The Bronx | B63: Tremont Av [B, D] | C63: 2769024 | D63: 2811145 | E63: 2702043 | F63: 2709632 | G63: 2772602 | H63: 62970 | I63: 0.023 | J63: 174 | L63: NO | M63: NO | R63: 0.001292152036 | X63: Queens | Y63: 103 St-Corona Plaza [7]
A64: The Bronx | B64: Van Cortlandt Park-242 St [1] | C64: 1829242 | D64: 1974147 | E64: 1925846 | F64: 1878788 | G64: 1937333 | H64: 58545 | I64: 0.031 | J64: 239 | L64: NO | M64: NO | R64: 0.059090596 | X64: Queens | Y64: 74-Bway [7, E, F, M, R]
A65: The Bronx | B65: Wakefield-241 St [2] | C65: 1272043 | D65: 1344876 | E65: 1340643 | F65: 1471501 | G65: 1560698 | H65: 89197 | I65: 0.061 | J65: 282 | L65: NO | M65: NO | R65: 0.2269223603 | X65: Queens | Y65: 82 St-Jackson Hts [7]
A66: The Bronx | B66: West Farms Sq-East Tremont Av [2, 5] | C66: 2266956 | D66: 2366256 | E66: 2314557 | F66: 2520377 | G66: 2391352 | H66: -129025 | I66: -0.051 | J66: 193 | L66: NO | M66: NO | R66: 0.05487358378 | X66: Queens | Y66: 90 St-Elmhurst Av [7]
A67: The Bronx | B67: Westchester Sq-East Tremont Av [6] | C67: 1791258 | D67: 1883509 | E67: 1828155 | F67: 1885522 | G67: 1993343 | H67: 107821 | I67: 0.057 | J67: 231 | L67: NO | M67: NO | R67: 0.1128173608 | X67: Queens | Y67: Astoria-Ditmars Blvd [N, Q]
A68: The Bronx | B68: Whitlock Av [6] | C68: 459855 | D68: 475282 | E68: 480146 | F68: 163461 | G68: 726747 | H68: 563286 | I68: 3.446 | J68: 386 | L68: =IF(AND(G68<F68,F68<E68,E68<D68,D68<C68),"YES","NO") -> NO | M68: =IF(AND(G68>F68,F68>E68,E68>D68,D68>C68),"YES","NO") -> NO | R68: =IFERROR((G68-C68)/C68,"") -> 0.5803829468 | X68: Queens | Y68: Court Sq [E, G, M, 7]
A69: The Bronx | B69: Woodlawn [4] | C69: 1963703 | D69: 2051564 | E69: 2194906 | F69: 2379276 | G69: 2494092 | H69: 114816 | I69: 0.048 | J69: 185 | L69: NO | M69: YES | R69: 0.2700963435 | X69: Queens | Y69: Flushing-Main St [7]
A70: The Bronx | B70: Zerega Av [6] | C70: 688598 | D70: 736708 | E70: 713198 | F70: 759280 | G70: 825755 | H70: 66475 | I70: 0.088 | J70: 374 | L70: NO | M70: NO | R70: 0.1991829776 | X70: Queens | Y70: Forest Hills-71 Av [E, F, M, R]
A71: Brooklyn | B71: 15 St-Prospect Park [F, G] | C71: 1848820 | D71: 1849326 | E71: 1844403 | F71: 1922348 | G71: 1449241 | H71: -473107 | I71: -0.246 | J71: 296 | L71: NO | M71: NO | R71: -0.2161265023 | X71: Queens | Y71: Grand Av-Newtown [M, R]
A72: Brooklyn | B72: 18 Av [D] | C72: 1653638 | D72: 1792316 | E72: 1740190 | F72: 1752952 | G72: 1654305 | H72: -98647 | I72: -0.056 | J72: 269 | L72: NO | M72: NO | R72: 0.0004033530918 | X72: Queens | Y72: Jamaica Center-Parsons-Archer [E, J, Z]
A73: Brooklyn | B73: 18 Av [F] | C73: 1288783 | D73: 1311236 | E73: 1258172 | F73: 1287551 | G73: 1306839 | H73: 19288 | I73: 0.015 | J73: 311 | L73: NO | M73: NO | R73: 0.01401011652 | X73: Queens | Y73: Jamaica-179 St [F]
A74: Brooklyn | B74: 18 Av [N] | C74: 1451716 | D74: 1614019 | E74: 1717106 | F74: 1676056 | G74: 1828462 | H74: 152406 | I74: 0.091 | J74: 247 | L74: NO | M74: NO | R74: 0.2595177018 | X74: Queens | Y74: Junction Blvd [7]
A75: Brooklyn | B75: 20 Av [D] | C75: 1408668 | D75: 1489652 | E75: 1419604 | F75: 1409313 | G75: 1370001 | H75: -39312 | I75: -0.028 | J75: 302 | L75: NO | M75: NO | R75: -0.02744933512 | X75: Queens | Y75: Kew Gardens-Union Turnpike [E, F]
A76: Brooklyn | B76: 20 Av [N] | C76: 1074076 | D76: 1183329 | E76: 1253690 | F76: 1194973 | G76: 1220065 | H76: 25092 | I76: 0.021 | J76: 325 | L76: NO | M76: NO | R76: 0.1359205494 | X76: Queens | Y76: Sutphin Blvd-Archer Av-JFK Airport [E, J, Z]
A77: Brooklyn | B77: 25 Av [D] | C77: 1354147 | D77: 1404084 | E77: 1329003 | F77: 1328491 | G77: 1266146 | H77: -62345 | I77: -0.047 | J77: 317 | L77: NO | M77: NO | R77: -0.06498629765 | X77: Queens | Y77: Woodhaven Blvd [M, R]
A78: Brooklyn | B78: 25 St [R] | C78: 1199657 | D78: 1223561 | E78: 1179455 | F78: 1208827 | G78: 1243737 | H78: 34910 | I78: 0.029 | J78: 320 | L78: NO | M78: NO | R78: 0.03674383595 | X78: Queens | Y78: Woodside-61 St [7]
A79: Brooklyn | B79: 36 St [D, N, R] | C79: 3344295 | D79: 3567379 | E79: 3444333 | F79: 3567832 | G79: 3659139 | H79: 91307 | I79: 0.026 | J79: 128 | L79: NO | M79: NO | R79: 0.09414360874
A80: Brooklyn | B80: 4 Av [F, G, R] | C80: 3220717 | D80: 3433636 | E80: 3494753 | F80: 3672622 | G80: 4020665 | H80: 348043 | I80: 0.095 | J80: 116 | L80: NO | M80: YES | R80: 0.2483757499
A81: Brooklyn | B81: 45 St [R] | C81: 2285612 | D81: 2358187 | E81: 2317470 | F81: 2284356 | G81: 2328141 | H81: 43785 | I81: 0.019 | J81: 198 | L81: NO | M81: NO | R81: 0.01860727018
A82: Brooklyn | B82: 50 St [D] | C82: 1002804 | D82: 1008658 | E82: 944314 | F82: 942902 | G82: 897609 | H82: -45293 | I82: -0.048 | J82: 365 | L82: NO | M82: NO | R82: -0.104900858
A83: Brooklyn | B83: 53 St [R] | C83: 2416483 | D83: 2453450 | E83: 2382707 | F83: 2370851 | G83: 2401105 | H83: 30254 | I83: 0.013 | J83: 191 | L83: NO | M83: NO | R83: -0.006363793993
A84: Brooklyn | B84: 55 St [D] | C84: 622180 | D84: 627136 | E84: 577138 | F84: 580913 | G84: 586282 | H84: 5369 | I84: 0.009 | J84: 395 | L84: NO | M84: NO | R84: -0.05769712945
A85: Brooklyn | B85: 59 St [N, R] | C85: 3705952 | D85: 3833772 | E85: 3736347 | F85: 3867990 | G85: 3819141 | H85: -48849 | I85: -0.013 | J85: 124 | L85: NO | M85: NO | R85: 0.03054248949
A86: Brooklyn | B86: 7 Av [B, Q] | C86: 2919809 | D86: 3071778 | E86: 3014532 | F86: 3064214 | G86: 2953368 | H86: -110846 | I86: -0.036 | J86: 165 | L86: NO | M86: NO | R86: 0.01149356002
A87: Brooklyn | B87: 7 Av [F, G] | C87: 3507448 | D87: 3451277 | E87: 3316537 | F87: 3397045 | G87: 3934545 | H87: 537500 | I87: 0.158 | J87: 119 | L87: NO | M87: NO | R87: 0.1217685907
A88: Brooklyn | B88: 71 St [D] | C88: 1384920 | D88: 1434010 | E88: 1308071 | F88: 1332009 | G88: 1115321 | H88: -216688 | I88: -0.163 | J88: 335 | L88: NO | M88: NO | R88: -0.194667562
A89: Brooklyn | B89: 77 St [R] | C89: 1503433 | D89: 1584765 | E89: 1539875 | F89: 1545617 | G89: 1579635 | H89: 34018 | I89: 0.022 | J89: 278 | L89: NO | M89: NO | R89: 0.0506853315
A90: Brooklyn | B90: 79 St [D] | C90: 1730863 | D90: 1781752 | E90: 1694385 | F90: 1728820 | G90: 1633616 | H90: -95204 | I90: -0.055 | J90: 272 | L90: NO | M90: NO | R90: -0.05618411163
A91: Brooklyn | B91: 8 Av [N] | C91: 2943759 | D91: 3196930 | E91: 3384130 | F91: 3475890 | G91: 3484429 | H91: 8539 | I91: 0.002 | J91: 135 | L91: NO | M91: YES | R91: 0.1836665298
A92: Brooklyn | B92: 86 St [N] | C92: 619906 | D92: 684815 | E92: 736775 | F92: 770621 | G92: 796379 | H92: 25758 | I92: 0.033 | J92: 381 | L92: NO | M92: YES | R92: 0.2846770317
A93: Brooklyn | B93: 86 St [R] | C93: 3226321 | D93: 3343893 | E93: 3274415 | F93: 3306164 | G93: 3445470 | H93: 139306 | I93: 0.042 | J93: 138 | L93: NO | M93: NO | R93: 0.06792535523
A94: Brooklyn | B94: 9 Av [D] | C94: 1861608 | D94: 1968068 | E94: 1873361 | F94: 1863019 | G94: 1681423 | H94: -181596 | I94: -0.097 | J94: 265 | L94: NO | M94: NO | R94: -0.09678997942
A95: Brooklyn | B95: Alabama Av [J] | C95: 605337 | D95: 675258 | E95: 683329 | F95: 712714 | G95: 759581 | H95: 46867 | I95: 0.066 | J95: 384 | L95: NO | M95: YES | R95: 0.2548068266
A96: Brooklyn | B96: Atlantic Av [B, Q, 2, 3, 4, 5, D, N, R] | C96: 9643487 | D96: 10121151 | E96: 10039490 | F96: 10478354 | G96: 10726332 | H96: 247978 | I96: 0.024 | J96: 28 | L96: NO | M96: NO | R96: 0.1122877026
A97: Brooklyn | B97: Atlantic Av [L] | C97: 339874 | D97: 386672 | E97: 395884 | F97: 424208 | G97: 427914 | H97: 3706 | I97: 0.009 | J97: 409 | L97: NO | M97: YES | R97: 0.2590371726
A98: Brooklyn | B98: Avenue H [Q] | C98: 850208 | D98: 887650 | E98: 819739 | F98: 662564 | G98: 521818 | H98: -140746 | I98: -0.212 | J98: 403 | L98: NO | M98: NO | R98: -0.3862466596
A99: Brooklyn | B99: Avenue I [F] | C99: 736191 | D99: 741356 | E99: 725876 | F99: 708788 | G99: 696851 | H99: -11937 | I99: -0.017 | J99: 390 | L99: NO | M99: NO | R99: -0.05343721942
A100: Brooklyn | B100: Avenue J [Q] | C100: 1973706 | D100: 2031548 | E100: 1886881 | F100: 2059453 | G100: 2085557 | H100: 26104 | I100: 0.013 | J100: 224 | L100: NO | M100: NO | R100: 0.05667054769
A101: Brooklyn | B101: Avenue M [Q] | C101: 1751074 | D101: 1851760 | E101: 1661369 | F101: 1351418 | G101: 1345774 | H101: -5644 | I101: -0.004 | J101: 305 | L101: NO | M101: NO | R101: -0.2314579509
A102: Brooklyn | B102: Avenue N [F] | C102: 1051230 | D102: 1067437 | E102: 999622 | F102: 1016781 | G102: 1049752 | H102: 32971 | I102: 0.032 | J102: 347 | L102: NO | M102: NO | R102: -0.001405972052
A103: Brooklyn | B103: Avenue P [F] | C103: 892585 | D103: 900117 | E103: 830813 | F103: 829508 | G103: 836317 | H103: 6809 | I103: 0.008 | J103: 371 | L103: NO | M103: NO | R103: -0.0630393744
A104: Brooklyn | B104: Avenue U [F] | C104: 676788 | D104: 678084 | E104: 673170 | F104: 723222 | G104: 696998 | H104: -26224 | I104: -0.036 | J104: 389 | L104: NO | M104: NO | R104: 0.02986164057
A105: Brooklyn | B105: Avenue U [N] | C105: 984530 | D105: 1116116 | E105: 1255861 | F105: 1263986 | G105: 1244178 | H105: -19808 | I105: -0.016 | J105: 319 | L105: NO | M105: NO | R105: 0.2637278702
A106: Brooklyn | B106: Avenue U [Q] | C106: 2271140 | D106: 2312053 | E106: 1829675 | F106: 1325173 | G106: 2136714 | H106: 811541 | I106: 0.612 | J106: 215 | L106: NO | M106: NO | R106: -0.05918877744
A107: Brooklyn | B107: Avenue X [F] | C107: 886355 | D107: 877399 | E107: 833930 | F107: 843207 | G107: 854737 | H107: 11530 | I107: 0.014 | J107: 369 | L107: NO | M107: NO | R107: -0.03567193732
A108: Brooklyn | B108: Bay 50 St [D] | C108: 873104 | D108: 871867 | E108: 941332 | F108: 969133 | G108: 920243 | H108: -48890 | I108: -0.05 | J108: 360 | L108: NO | M108: NO | R108: 0.05399013176
A109: Brooklyn | B109: Bay Pkwy [D] | C109: 2145203 | D109: 2241011 | E109: 2088844 | F109: 2107643 | G109: 2018400 | H109: -89243 | I109: -0.042 | J109: 229 | L109: NO | M109: NO | R109: -0.05911002362
A110: Brooklyn | B110: Bay Pkwy [F] | C110: 448356 | D110: 441249 | E110: 417087 | F110: 427277 | G110: 434564 | H110: 7287 | I110: 0.017 | J110: 408 | L110: NO | M110: NO | R110: -0.03076127006
A111: Brooklyn | B111: Bay Pkwy [N] | C111: 1725387 | D111: 1940220 | E111: 2090204 | F111: 2107881 | G111: 2160569 | H111: 52688 | I111: 0.025 | J111: 214 | L111: NO | M111: YES | R111: 0.2522228346
A112: Brooklyn | B112: Bay Ridge Av [R] | C112: 2438750 | D112: 2549155 | E112: 2505035 | F112: 2483394 | G112: 2538150 | H112: 54756 | I112: 0.022 | J112: 183 | L112: NO | M112: NO | R112: 0.04075858534
A113: Brooklyn | B113: Bay Ridge-95 St [R] | C113: 1679876 | D113: 1732989 | E113: 1700946 | F113: 1719577 | G113: 1769432 | H113: 49855 | I113: 0.029 | J113: 257 | L113: NO | M113: NO | R113: 0.05331107772
A114: Brooklyn | B114: Bedford Av [L] | C114: 5766688 | D114: 6504331 | E114: 6761478 | F114: 7418203 | G114: 7738863 | H114: 320660 | I114: 0.043 | J114: 46 | L114: NO | M114: YES | R114: 0.3419943996
A115: Brooklyn | B115: Bedford-Nostrand Avs [G] | C115: 1660873 | D115: 1820311 | E115: 1876400 | F115: 1895163 | G115: 2012606 | H115: 117443 | I115: 0.062 | J115: 230 | L115: NO | M115: YES | R115: 0.2117759756
A116: Brooklyn | B116: Bergen St [2, 3] | C116: 1207019 | D116: 1236037 | E116: 1238795 | F116: 1265510 | G116: 1326721 | H116: 61211 | I116: 0.048 | J116: 307 | L116: NO | M116: YES | R116: 0.09917159548
A117: Brooklyn | B117: Bergen St [F, G] | C117: 3126241 | D117: 3169916 | E117: 3228987 | F117: 3296466 | G117: 3452452 | H117: 155986 | I117: 0.047 | J117: 137 | L117: NO | M117: YES | R117: 0.1043460821
A118: Brooklyn | B118: Beverley Rd [Q] | C118: 900828 | D118: 917474 | E118: 889066 | F118: 1070872 | G118: 1095502 | H118: 24630 | I118: 0.023 | J118: 342 | L118: NO | M118: NO | R118: 0.2161056273
A119: Brooklyn | B119: Beverly Rd [2, 5] | C119: 1244565 | D119: 1271764 | E119: 1219695 | F119: 1231592 | G119: 1276466 | H119: 44874 | I119: 0.036 | J119: 316 | L119: NO | M119: NO | R119: 0.02563224902
A120: Brooklyn | B120: Brighton Beach [B, Q] | C120: 3895150 | D120: 4125373 | E120: 3997205 | F120: 3995043 | G120: 3842789 | H120: -152254 | I120: -0.038 | J120: 123 | L120: NO | M120: NO | R120: -0.01344261453
A121: Brooklyn | B121: Broadway [G] | C121: 1006749 | D121: 1032689 | E121: 1047629 | F121: 941243 | G121: 995856 | H121: 54613 | I121: 0.058 | J121: 353 | L121: NO | M121: NO | R121: -0.01081997598
A122: Brooklyn | B122: Broadway Junction [A, C, J, L, Z] | C122: 2907085 | D122: 2937794 | E122: 2846582 | F122: 2767838 | G122: 2810713 | H122: 42875 | I122: 0.015 | J122: 169 | L122: NO | M122: NO | R122: -0.03315073347
A123: Brooklyn | B123: Bushwick Av-Aberdeen St [L] | C123: 315597 | D123: 366270 | E123: 365349 | F123: 398834 | G123: 405385 | H123: 6551 | I123: 0.016 | J123: 410 | L123: NO | M123: NO | R123: 0.2845020707
A124: Brooklyn | B124: Canarsie-Rockaway Pkwy [L] | C124: 3601731 | D124: 3773940 | E124: 3660047 | F124: 3806903 | G124: 3865823 | H124: 58920 | I124: 0.015 | J124: 121 | L124: NO | M124: NO | R124: 0.07332363244
A125: Brooklyn | B125: Carroll St [F, G] | C125: 3059642 | D125: 3089357 | E125: 2995068 | F125: 3025719 | G125: 3598477 | H125: 572758 | I125: 0.189 | J125: 130 | L125: NO | M125: NO | R125: 0.1761104731
A126: Brooklyn | B126: Central Av [M] | C126: 620228 | D126: 684847 | E126: 747651 | F126: 760657 | G126: 890194 | H126: 129537 | I126: 0.17 | J126: 367 | L126: NO | M126: YES | R126: 0.4352689656
A127: Brooklyn | B127: Chauncey St [J, Z] | C127: 771353 | D127: 822076 | E127: 847239 | F127: 898984 | G127: 966989 | H127: 68005 | I127: 0.076 | J127: 357 | L127: NO | M127: YES | R127: 0.2536270683
A128: Brooklyn | B128: Church Av [2, 5] | C128: 2921895 | D128: 2949285 | E128: 2872287 | F128: 2994162 | G128: 3057877 | H128: 63715 | I128: 0.021 | J128: 155 | L128: NO | M128: NO | R128: 0.04653897556
A129: Brooklyn | B129: Church Av [B, Q] | C129: 4875322 | D129: 5173847 | E129: 4966209 | F129: 4654613 | G129: 4665059 | H129: 10446 | I129: 0.002 | J129: 95 | L129: NO | M129: NO | R129: -0.04312802313
A130: Brooklyn | B130: Church Av [F, G] | C130: 2941806 | D130: 2965803 | E130: 2908011 | F130: 2968167 | G130: 3271729 | H130: 303562 | I130: 0.102 | J130: 143 | L130: NO | M130: NO | R130: 0.1121498155
A131: Brooklyn | B131: Clark St [2, 3] | C131: 1592264 | D131: 1627465 | E131: 1706174 | F131: 1711829 | G131: 1754204 | H131: 42375 | I131: 0.025 | J131: 259 | L131: NO | M131: YES | R131: 0.10170424
A132: Brooklyn | B132: Classon Av [G] | C132: 1102407 | D132: 1145468 | E132: 1186685 | F132: 1207680 | G132: 1308232 | H132: 100552 | I132: 0.083 | J132: 310 | L132: =IF(AND(G132<F132,F132<E132,E132<D132,D132<C132),"YES","NO") -> NO | M132: =IF(AND(G132>F132,F132>E132,E132>D132,D132>C132),"YES","NO") -> YES | R132: =IFERROR((G132-C132)/C132,"") -> 0.1867050917
A133: Brooklyn | B133: Cleveland St [J] | C133: 818018 | D133: 937050 | E133: 951023 | F133: 970732 | G133: 1002848 | H133: 32116 | I133: 0.033 | J133: 352 | L133: NO | M133: YES | R133: 0.2259485733
A134: Brooklyn | B134: Clinton-Washington Avs [C] | C134: 1531187 | D134: 1636635 | E134: 1559809 | F134: 1707500 | G134: 1819542 | H134: 112042 | I134: 0.066 | J134: 248 | L134: NO | M134: NO | R134: 0.1883212175
A135: Brooklyn | B135: Clinton-Washington Avs [G] | C135: 1417193 | D135: 1464016 | E135: 1503550 | F135: 1517296 | G135: 1628558 | H135: 111262 | I135: 0.073 | J135: 273 | L135: NO | M135: YES | R135: 0.1491434124
A136: Brooklyn | B136: Coney Island-Stillwell Av [D, F, N, Q] | C136: 4258403 | D136: 4482958 | E136: 4378886 | F136: 4768416 | G136: 4649438 | H136: -118978 | I136: -0.025 | J136: 96 | L136: NO | M136: NO | R136: 0.09182667775
A137: Brooklyn | B137: Cortelyou Rd [Q] | C137: 1883312 | D137: 1985030 | E137: 1879021 | F137: 2086918 | G137: 2135444 | H137: 48526 | I137: 0.023 | J137: 216 | L137: NO | M137: NO | R137: 0.1338769147
A138: Brooklyn | B138: Court St [R, 2, 3, 4, 5] | C138: 10147974 | D138: 10698228 | E138: 10788326 | F138: 11134599 | G138: 11115037 | H138: -19562 | I138: -0.002 | J138: 27 | L138: NO | M138: NO | R138: 0.09529616453
A139: Brooklyn | B139: Crescent St [J, Z] | C139: 1277248 | D139: 1436424 | E139: 1400697 | F139: 1464238 | G139: 1514075 | H139: 49837 | I139: 0.034 | J139: 287 | L139: NO | M139: NO | R139: 0.1854197462
A140: Brooklyn | B140: Crown Heights-Utica Av [3, 4] | C140: 8303467 | D140: 8573661 | E140: 8330192 | F140: 8498343 | G140: 8438284 | H140: -60059 | I140: -0.007 | J140: 37 | L140: NO | M140: NO | R140: 0.01623623
A141: Brooklyn | B141: Cypress Hills [J] | C141: 425388 | D141: 429277 | E141: 427322 | F141: 419062 | G141: 435446 | H141: 16384 | I141: 0.039 | J141: 407 | L141: NO | M141: NO | R141: 0.0236442965
A142: Brooklyn | B142: DeKalb Av [B, Q, R] | C142: 4843313 | D142: 5043274 | E142: 5014623 | F142: 5079961 | G142: 5122803 | H142: 42842 | I142: 0.008 | J142: 86 | L142: NO | M142: NO | R142: 0.05770636752
A143: Brooklyn | B143: DeKalb Av [L] | C143: 3024645 | D143: 3329950 | E143: 3110345 | F143: 3343666 | G143: 3382468 | H143: 38802 | I143: 0.012 | J143: 140 | L143: NO | M143: NO | R143: 0.1183024785
A144: Brooklyn | B144: Ditmas Av [F] | C144: 1484299 | D144: 1478231 | E144: 1398512 | F144: 1377549 | G144: 1392790 | H144: 15241 | I144: 0.011 | J144: 299 | L144: NO | M144: NO | R144: -0.06165132497
A145: Brooklyn | B145: East 105 St [L] | C145: 933164 | D145: 1017671 | E145: 1014253 | F145: 1065469 | G145: 1101683 | H145: 36214 | I145: 0.034 | J145: 339 | L145: NO | M145: NO | R145: 0.1805888354
A146: Brooklyn | B146: Eastern Pkwy-Brooklyn Museum [2, 3] | C146: 1564980 | D146: 1602404 | E146: 1557736 | F146: 1590190 | G146: 1568924 | H146: -21266 | I146: -0.013 | J146: 281 | L146: NO | M146: NO | R146: 0.002520160002
A147: Brooklyn | B147: Euclid Av [A, C] | C147: 2866128 | D147: 2995164 | E147: 2888392 | F147: 3004395 | G147: 3100867 | H147: 96472 | I147: 0.032 | J147: 153 | L147: NO | M147: NO | R147: 0.08190108746
A148: Brooklyn | B148: Flatbush Av-Brooklyn College [2, 5] | C148: 5849991 | D148: 6035079 | E148: 5951280 | F148: 6335954 | G148: 6547958 | H148: 212004 | I148: 0.033 | J148: 63 | L148: NO | M148: NO | R148: 0.1193107818
A149: Brooklyn | B149: Flushing Av [G] | C149: 596342 | D149: 599449 | E149: 582662 | F149: 553739 | G149: 616083 | H149: 62344 | I149: 0.113 | J149: 394 | L149: NO | M149: NO | R149: 0.0331034876
A150: Brooklyn | B150: Flushing Av [J, M] | C150: 2189891 | D150: 2359615 | E150: 2472600 | F150: 2610974 | G150: 2683278 | H150: 72304 | I150: 0.028 | J150: 179 | L150: NO | M150: YES | R150: 0.2253020812
A151: Brooklyn | B151: Fort Hamilton Pkwy [D] | C151: 1148030 | D151: 1188918 | E151: 1159841 | F151: 1154051 | G151: 1103024 | H151: -51027 | I151: -0.044 | J151: 338 | L151: NO | M151: NO | R151: -0.03920280829
A152: Brooklyn | B152: Fort Hamilton Pkwy [F, G] | C152: 1419753 | D152: 1474745 | E152: 1468106 | F152: 1509737 | G152: 1292131 | H152: -217606 | I152: -0.144 | J152: 314 | L152: NO | M152: NO | R152: -0.08989028373
A153: Brooklyn | B153: Fort Hamilton Pkwy [N] | C153: 1839810 | D153: 1979256 | E153: 1994402 | F153: 2045741 | G153: 2086389 | H153: 40648 | I153: 0.02 | J153: 223 | L153: NO | M153: YES | R153: 0.1340241655
A154: Brooklyn | B154: Franklin Av [2, 3, 4, 5, S] | C154: 4013780 | D154: 4228510 | E154: 4302121 | F154: 4433981 | G154: 4712492 | H154: 278511 | I154: 0.063 | J154: 93 | L154: NO | M154: YES | R154: 0.1740783003
A155: Brooklyn | B155: Franklin Av [C, S] | C155: 1562157 | D155: 1659913 | E155: 1608062 | F155: 1768472 | G155: 1904736 | H155: 136264 | I155: 0.077 | J155: 244 | L155: NO | M155: NO | R155: 0.2192987005
A156: Brooklyn | B156: Fulton St [G] | C156: 935284 | D156: 1013751 | E156: 1089757 | F156: 1098862 | G156: 1179034 | H156: 80172 | I156: 0.073 | J156: 327 | L156: NO | M156: YES | R156: 0.2606160268
A157: Brooklyn | B157: Gates Av [J, Z] | C157: 1495901 | D157: 1609242 | E157: 1666134 | F157: 1749349 | G157: 1870109 | H157: 120760 | I157: 0.069 | J157: 245 | L157: NO | M157: YES | R157: 0.2501555918
A158: Brooklyn | B158: Graham Av [L] | C158: 2505392 | D158: 2727719 | E158: 2717687 | F158: 3028830 | G158: 3054897 | H158: 26067 | I158: 0.009 | J158: 156 | L158: NO | M158: NO | R158: 0.2193289513
A159: Brooklyn | B159: Grand Army Plaza [2, 3] | C159: 2412986 | D159: 2412424 | E159: 2366786 | F159: 2369355 | G159: 2417351 | H159: 47996 | I159: 0.02 | J159: 189 | L159: NO | M159: NO | R159: 0.001808962008
A160: Brooklyn | B160: Grand St [L] | C160: 1925383 | D160: 2075718 | E160: 1981342 | F160: 2103847 | G160: 2135063 | H160: 31216 | I160: 0.015 | J160: 217 | L160: NO | M160: NO | R160: 0.1089030079
A161: Brooklyn | B161: Grant Av [A] | C161: 1858974 | D161: 1940737 | E161: 1898215 | F161: 1910245 | G161: 1953637 | H161: 43392 | I161: 0.023 | J161: 236 | L161: NO | M161: NO | R161: 0.05092217535
A162: Brooklyn | B162: Greenpoint Av [G] | C162: 2305443 | D162: 2392113 | E162: 2319327 | F162: 2200679 | G162: 2490286 | H162: 289607 | I162: 0.132 | J162: 186 | L162: NO | M162: NO | R162: 0.08017678164
A163: Brooklyn | B163: Halsey St [J] | C163: 1503525 | D163: 1619882 | E163: 1632375 | F163: 1730267 | G163: 1805490 | H163: 75223 | I163: 0.043 | J163: 252 | L163: NO | M163: YES | R163: 0.2008380306
A164: Brooklyn | B164: Halsey St [L] | C164: 1758909 | D164: 1946762 | E164: 1907900 | F164: 2019248 | G164: 2037729 | H164: 18481 | I164: 0.009 | J164: 228 | L164: NO | M164: NO | R164: 0.1585187181
A165: Brooklyn | B165: Hewes St [J, M] | C165: 657361 | D165: 703052 | E165: 744898 | F165: 785545 | G165: 848377 | H165: 62832 | I165: 0.08 | J165: 370 | L165: NO | M165: YES | R165: 0.2905800618
A166: Brooklyn | B166: High St [A, C] | C166: 1746191 | D166: 1915125 | E166: 1888271 | F166: 1968091 | G166: 2093306 | H166: 125215 | I166: 0.064 | J166: 222 | L166: NO | M166: NO | R166: 0.1987840964
A167: Brooklyn | B167: Hoyt St [2, 3] | C167: 1986330 | D167: 1938805 | E167: 1902962 | F167: 1839662 | G167: 1922916 | H167: 83254 | I167: 0.045 | J167: 241 | L167: NO | M167: NO | R167: -0.0319252088
A168: Brooklyn | B168: Hoyt-Schermerhorn Sts [A, C, G] | C168: 2641181 | D168: 2897619 | E168: 2862942 | F168: 2923091 | G168: 2968639 | H168: 45548 | I168: 0.016 | J168: 161 | L168: NO | M168: NO | R168: 0.1239816582
A169: Brooklyn | B169: Jay St-MetroTech [A, C, F, R] | C169: 10429024 | D169: 10642207 | E169: 10355187 | F169: 10488087 | G169: 11149629 | H169: 661542 | I169: 0.063 | J169: 26 | L169: NO | M169: NO | R169: 0.06909611101
A170: Brooklyn | B170: Jefferson St [L] | C170: 1403678 | D170: 1569253 | E170: 1581941 | F170: 1740644 | G170: 1815391 | H170: 74747 | I170: 0.043 | J170: 249 | L170: NO | M170: YES | R170: 0.2933101466
A171: Brooklyn | B171: Junius St [3] | C171: 645442 | D171: 660409 | E171: 628879 | F171: 672366 | G171: 678990 | H171: 6624 | I171: 0.01 | J171: 393 | L171: NO | M171: NO | R171: 0.0519767849
A172: Brooklyn | B172: Kings Hwy [B, Q] | C172: 5470271 | D172: 5821580 | E172: 5549765 | F172: 5755515 | G172: 5311662 | H172: -443853 | I172: -0.077 | J172: 81 | L172: NO | M172: NO | R172: -0.02899472439
A173: Brooklyn | B173: Kings Hwy [F] | C173: 1106013 | D173: 1105178 | E173: 1038778 | F173: 1073519 | G173: 1115062 | H173: 41543 | I173: 0.039 | J173: 336 | L173: NO | M173: NO | R173: 0.008181639818
A174: Brooklyn | B174: Kings Hwy [N] | C174: 1406790 | D174: 1530933 | E174: 1584172 | F174: 1602420 | G174: 1601357 | H174: -1063 | I174: -0.001 | J174: 276 | L174: NO | M174: NO | R174: 0.1383056462
A175: Brooklyn | B175: Kingston Av [3] | C175: 1486763 | D175: 1544975 | E175: 1450448 | F175: 1485344 | G175: 1519113 | H175: 33769 | I175: 0.023 | J175: 286 | L175: NO | M175: NO | R175: 0.02175867976
A176: Brooklyn | B176: Kingston-Throop Avs [C] | C176: 1513915 | D176: 1577316 | E176: 1501234 | F176: 1571551 | G176: 1659127 | H176: 87576 | I176: 0.056 | J176: 266 | L176: NO | M176: NO | R176: 0.09591819884
A177: Brooklyn | B177: Knickerbocker Av [M] | C177: 965345 | D177: 1018665 | E177: 1054258 | F177: 1007087 | G177: 1136213 | H177: 129126 | I177: 0.128 | J177: 332 | L177: NO | M177: NO | R177: 0.1770020045
A178: Brooklyn | B178: Kosciuszko St [J] | C178: 1198873 | D178: 1293503 | E178: 1324395 | F178: 1401401 | G178: 1468119 | H178: 66718 | I178: 0.048 | J178: 294 | L178: NO | M178: YES | R178: 0.2245825871
A179: Brooklyn | B179: Lafayette Av [C] | C179: 1339622 | D179: 1472253 | E179: 1410635 | F179: 1525942 | G179: 1556902 | H179: 30960 | I179: 0.02 | J179: 283 | L179: NO | M179: NO | R179: 0.1621950072
A180: Brooklyn | B180: Liberty Av [C] | C180: 891810 | D180: 898961 | E180: 872268 | F180: 837165 | G180: 817481 | H180: -19684 | I180: -0.024 | J180: 376 | L180: NO | M180: NO | R180: -0.08334622846
A181: Brooklyn | B181: Livonia Av [L] | C181: 603620 | D181: 691560 | E181: 704067 | F181: 785229 | G181: 829015 | H181: 43786 | I181: 0.056 | J181: 372 | L181: NO | M181: YES | R181: 0.3734054538
A182: Brooklyn | B182: Lorimer St [J, M] | C182: 1233330 | D182: 1345921 | E182: 1379364 | F182: 1404557 | G182: 1470761 | H182: 66204 | I182: 0.047 | J182: 292 | L182: NO | M182: YES | R182: 0.1925121419
A183: Brooklyn | B183: Lorimer St [L, G] | C183: 3859353 | D183: 3831975 | E183: 4273071 | F183: 4394498 | G183: 4479022 | H183: 84524 | I183: 0.019 | J183: 101 | L183: NO | M183: NO | R183: 0.1605629234
A184: Brooklyn | B184: Marcy Av [J, M, Z] | C184: 2600039 | D184: 2897071 | E184: 3007825 | F184: 3276009 | G184: 3609981 | H184: 333972 | I184: 0.102 | J184: 129 | L184: NO | M184: YES | R184: 0.3884334043
A185: Brooklyn | B185: Montrose Av [L] | C185: 1593816 | D185: 1747376 | E185: 1718655 | F185: 1951066 | G185: 1983449 | H185: 32383 | I185: 0.017 | J185: 233 | L185: NO | M185: NO | R185: 0.2444654841
A186: Brooklyn | B186: Morgan Av [L] | C186: 1455193 | D186: 1664668 | E186: 1684084 | F186: 2021162 | G186: 2114813 | H186: 93651 | I186: 0.046 | J186: 219 | L186: NO | M186: YES | R186: 0.4532869523
A187: Brooklyn | B187: Myrtle Av [J, M, Z] | C187: 2434091 | D187: 2676471 | E187: 2748162 | F187: 2991967 | G187: 3155344 | H187: 163377 | I187: 0.055 | J187: 151 | L187: NO | M187: YES | R187: 0.2963130795
A188: Brooklyn | B188: Myrtle-Willoughby Avs [G] | C188: 1192656 | D188: 1307569 | E188: 1346184 | F188: 1223378 | G188: 1383197 | H188: 159819 | I188: 0.131 | J188: 301 | L188: NO | M188: NO | R188: 0.1597619096
A189: Brooklyn | B189: Myrtle-Wyckoff Avs [L, M] | C189: 4710774 | D189: 5230077 | E189: 5111569 | F189: 5399769 | G189: 5358434 | H189: -41335 | I189: -0.008 | J189: 79 | L189: NO | M189: NO | R189: 0.1374848379
A190: Brooklyn | B190: Nassau Av [G] | C190: 2363088 | D190: 2391486 | E190: 2321809 | F190: 2126804 | G190: 2396169 | H190: 269365 | I190: 0.127 | J190: 192 | L190: NO | M190: NO | R190: 0.01399905547
A191: Brooklyn | B191: Neck Rd [Q] | C191: 1148045 | D191: 1172413 | E191: 954832 | F191: 791867 | G191: 1242661 | H191: 450794 | I191: 0.569 | J191: 321 | L191: NO | M191: NO | R191: 0.08241488792
A192: Brooklyn | B192: Neptune Av [F] | C192: 492359 | D192: 490569 | E192: 480865 | F192: 516846 | G192: 536991 | H192: 20145 | I192: 0.039 | J192: 401 | L192: NO | M192: NO | R192: 0.09064930264
A193: Brooklyn | B193: Nevins St [2, 3, 4, 5] | C193: 3369278 | D193: 3459284 | E193: 3479130 | F193: 3566500 | G193: 3524471 | H193: -42029 | I193: -0.012 | J193: 133 | L193: NO | M193: NO | R193: 0.04606120362
A194: Brooklyn | B194: New Lots Av [3] | C194: 1783927 | D194: 1840488 | E194: 1781691 | F194: 1885350 | G194: 1954353 | H194: 69003 | I194: 0.037 | J194: 235 | L194: NO | M194: NO | R194: 0.09553417825
A195: Brooklyn | B195: New Lots Av [L] | C195: 939010 | D195: 1072250 | E195: 1138348 | F195: 1231257 | G195: 1304384 | H195: 73127 | I195: 0.059 | J195: 312 | L195: NO | M195: YES | R195: 0.3891055473
A196: Brooklyn | B196: New Utrecht Av [N, D] | C196: 1672534 | D196: 1689985 | E196: 1645572 | F196: 1692800 | G196: 1768935 | H196: 76135 | I196: 0.045 | J196: 258 | L196: =IF(AND(G196<F196,F196<E196,E196<D196,D196<C196),"YES","NO") -> NO | M196: =IF(AND(G196>F196,F196>E196,E196>D196,D196>C196),"YES","NO") -> NO | R196: =IFERROR((G196-C196)/C196,"") -> 0.05763769227
A197: Brooklyn | B197: Newkirk Av [2, 5] | C197: 2337181 | D197: 2403333 | E197: 2298052 | F197: 2347178 | G197: 2352060 | H197: 4882 | I197: 0.002 | J197: 196 | L197: NO | M197: NO | R197: 0.006366216395
A198: Brooklyn | B198: Newkirk Plaza [B, Q] | C198: 2988166 | D198: 3138236 | E198: 2842893 | F198: 2867372 | G198: 2999870 | H198: 132498 | I198: 0.046 | J198: 159 | L198: NO | M198: NO | R198: 0.00391678374
A199: Brooklyn | B199: Norwood Av [J, Z] | C199: 1009451 | D199: 1077051 | E199: 1041356 | F199: 1056263 | G199: 1065062 | H199: 8799 | I199: 0.008 | J199: 345 | L199: NO | M199: NO | R199: 0.05509034119
A200: Brooklyn | B200: Nostrand Av [3] | C200: 1251246 | D200: 1250756 | E200: 1200968 | F200: 1290482 | G200: 1324424 | H200: 33942 | I200: 0.026 | J200: 308 | L200: NO | M200: NO | R200: 0.05848410305
... 223 more rows
